fUSD/lending_fUSD_20250427
["ID","MTS","AMOUNT","RATE_DAILY","PERIOD"]
[359186326,1745787824410,398.22,0.00018907,2]
[359186327,1745787841300,9000.0,0.00018895,2]
[359186328,1745787857514,389.42,0.00018915,2]
[359186329,1745787866844,236.62,0.00018895,2]
[359186330,1745787908556,197.52898158,0.0001929,2]
[359186331,1745787998690,153.88,0.000335,31]
[359186332,1745787998735,153.88,0.000353,31]
[359186333,1745787998799,153.88,0.000353,31]
[359186334,1745787998856,153.88,0.000372,31]
[359186335,1745787998910,153.88,0.000372,31]
[359186336,1745787998975,153.88,0.00039,31]
[359186337,1745787999035,153.88,0.00039,31]
[359186338,1745787999097,153.88,0.000409,31]
[359186339,1745787999339,153.88,0.000409,31]
[359186340,1745788004129,350.428,0.00041055,30]
[359186341,1745788015531,1688.91,0.00018893,2]
[359186342,1745788036614,500.0,0.00040756,30]
[359186343,1745788047786,500.0,0.00040699,30]
[359186344,1745788094422,2930.29,0.00018931,2]
[359186345,1745788132776,150.0,0.00018944,2]
[359186346,1745788135084,1500.0,0.00032877,120]
[359186347,1745788155597,9604.83,0.00041096,30]
[359186348,1745788198160,1642.68,0.00018944,2]
[359186349,1745788203549,660.8,0.00018898,2]
[359186350,1745788204434,660.8,0.00025985,120]
[359186351,1745788204700,660.8,0.00028347,120]
[359186352,1745788213041,607.61,0.00018893,2]
[359186354,1745788231490,-571.2136002,0.00019387,2]
[359186360,1745788231789,-452.27916836,0.00019387,2]
[359186361,1745788231801,-457.21723144,0.00019387,2]
[359186362,1745788231810,-250.0,0.00019388,2]
[359186363,1745788231819,-200.0,0.00019388,2]
[359186364,1745788231831,-200.0,0.00019388,2]
[359186365,1745788231840,-1075.02,0.00019406,2]
[359186366,1745788231850,-194.19,0.00019463,2]
[359186367,1745788231859,-166.53,0.00019476,2]
[359186368,1745788231870,-150.0,0.00019766,2]
[359186369,1745788231879,-300.0,0.00019799,2]
[359186370,1745788231888,-300.0,0.00019799,2]
[359186371,1745788231898,-192.25987763,0.00019799,2]
[359186372,1745788231920,-1007.74012237,0.00019799,2]
[359186373,1745788231930,-153.1179488,0.000198,2]
[359186375,1745788231939,-5756.91330767,0.000198,2]
[359186377,1745788231948,-5756.91330764,0.00019811,2]
[359186378,1745788231957,-5756.91330764,0.00019822,2]
[359186380,1745788231967,-1297.588,0.00019833,2]
[359186382,1745788231976,-165.477,0.00019833,2]
[359186384,1745788231985,-5756.91330764,0.00019833,2]
[359186386,1745788231995,-5756.91330764,0.00019844,2]
[359186388,1745788232004,-12500.0,0.00019847,2]
[359186389,1745788232013,-5756.91330764,0.00019856,2]
[359186391,1745788232022,-5756.91330764,0.00019867,2]
[359186392,1745788232031,-850.0,0.00019872,2]
[359186393,1745788232040,-806.64762102,0.00019872,2]
[359186394,1745788232049,-215.09106027,0.00019873,2]
[359186395,1745788232058,-185.47653566,0.00019873,2]
[359186396,1745788232068,-500.0,0.00019873,2]
[359186397,1745788232077,-500.0,0.00019873,2]
[359186398,1745788232088,-500.0,0.00019873,2]
[359186399,1745788232098,-500.0,0.00019873,2]
[359186400,1745788232107,-5756.91330764,0.00019878,2]
[359186401,1745788232117,-5756.91330764,0.00019889,2]
[359186402,1745788232126,-546.8,0.00019899,2]
[359186403,1745788232136,-500.0,0.00019899,2]
[359186404,1745788232145,-500.0,0.00019899,2]
[359186405,1745788232155,-526.93,0.00019899,2]
[359186406,1745788232165,-480.0,0.00019899,2]
[359186407,1745788232175,-480.0,0.00019899,2]
[359186408,1745788232184,-480.0,0.00019899,2]
[359186409,1745788232194,-480.0,0.00019899,2]
[359186410,1745788232203,-480.0,0.00019899,2]
[359186411,1745788232213,-388.79,0.00019899,2]
[359186412,1745788232223,-565.2,0.00019899,2]
[359186413,1745788232232,-500.0,0.00019899,2]
[359186414,1745788232241,-398.12,0.00019899,2]
[359186415,1745788232250,-480.0,0.00019899,2]
[359186416,1745788232259,-500.0,0.00019899,2]
[359186417,1745788232269,-500.0,0.00019899,2]
[359186418,1745788232278,-500.0,0.00019899,2]
[359186419,1745788232287,-500.0,0.00019899,2]
[359186420,1745788232297,-500.0,0.00019899,2]
[359186421,1745788232306,-480.0,0.00019899,2]
[359186422,1745788232315,-222.84,0.00019899,2]
[359186423,1745788232324,-500.0,0.00019899,2]
[359186424,1745788232333,-500.0,0.00019899,2]
[359186425,1745788232343,-549.25,0.00019899,2]
[359186426,1745788232352,-480.0,0.00019899,2]
[359186427,1745788232361,-492.46,0.00019899,2]
[359186428,1745788232371,-500.0,0.00019899,2]
[359186429,1745788232380,-500.0,0.00019899,2]
[359186430,1745788232390,-250.0,0.00019899,2]
[359186431,1745788232399,-311.41,0.00019899,2]
[359186432,1745788232408,-500.0,0.00019899,2]
[359186433,1745788232418,-500.0,0.00019899,2]
[359186434,1745788232427,-500.0,0.00019899,2]
[359186435,1745788232437,-500.0,0.00019899,2]
[359186436,1745788232446,-480.0,0.00019899,2]
[359186437,1745788232456,-420.0,0.00019899,2]
[359186438,1745788232465,-500.0,0.00019899,2]
[359186439,1745788232475,-500.0,0.00019899,2]
[359186440,1745788232484,-400.0,0.00019899,2]
[359186441,1745788232493,-500.0,0.00019899,2]
[359186442,1745788232502,-510.99,0.00019899,2]
[359186443,1745788232512,-500.0,0.00019899,2]
[359186444,1745788232521,-500.0,0.00019899,2]
[359186445,1745788232530,-418.93493945,0.00019899,2]
[359186447,1745788232540,-500.0,0.00019899,2]
[359186449,1745788232549,-255.41173065,0.00019899,2]
[359186451,1745788232558,-500.0,0.00019899,2]
[359186453,1745788232568,-480.0,0.00019899,2]
[359186455,1745788232577,-172.86445671,0.00019899,2]
[359186457,1745788232586,-500.0,0.00019899,2]
[359186459,1745788232595,-500.0,0.00019899,2]
[359186461,1745788232605,-500.0,0.00019899,2]
[359186463,1745788232614,-500.0,0.00019899,2]
[359186465,1745788232623,-500.0,0.00019899,2]
[359186467,1745788232632,-500.0,0.00019899,2]
[359186469,1745788232641,-500.0,0.00019899,2]
[359186471,1745788232651,-500.0,0.00019899,2]
[359186473,1745788232660,-500.0,0.00019899,2]
[359186475,1745788232669,-500.0,0.00019899,2]
[359186477,1745788232678,-500.0,0.00019899,2]
[359186479,1745788232687,-500.0,0.00019899,2]
[359186481,1745788232697,-500.0,0.00019899,2]
[359186483,1745788232707,-504.61,0.00019899,2]
[359186485,1745788232716,-500.0,0.00019899,2]
[359186487,1745788232726,-500.0,0.00019899,2]
[359186489,1745788232735,-500.0,0.00019899,2]
[359186491,1745788232745,-500.0,0.00019899,2]
[359186493,1745788232754,-553.98566313,0.00019899,2]
[359186495,1745788232763,-500.0,0.00019899,2]
[359186497,1745788232773,-500.0,0.00019899,2]
[359186499,1745788232783,-480.0,0.00019899,2]
[359186501,1745788232792,-457.24,0.00019899,2]
[359186503,1745788232801,-500.0,0.00019899,2]
[359186505,1745788232811,-501.86675398,0.00019899,2]
[359186507,1745788232820,-277.19325236,0.00019899,2]
[359186509,1745788232830,-480.0,0.00019899,2]
[359186511,1745788232842,-629.13,0.00019899,2]
[359186513,1745788232851,-500.0,0.00019899,2]
[359186515,1745788232860,-500.0,0.00019899,2]
[359186517,1745788232870,-480.0,0.00019899,2]
[359186519,1745788232879,-425.88,0.00019899,2]
[359186520,1745788232888,-500.0,0.00019899,2]
[359186521,1745788232898,-500.0,0.00019899,2]
[359186522,1745788232907,-480.0,0.00019899,2]
[359186523,1745788232917,-425.04,0.00019899,2]
[359186524,1745788232926,-480.0,0.00019899,2]
[359186525,1745788232935,-218.31,0.00019899,2]
[359186526,1745788232945,-500.0,0.00019899,2]
[359186527,1745788232955,-292.88360807,0.00019899,2]
[359186528,1745788232965,-500.0,0.00019899,2]
[359186529,1745788232974,-480.0,0.00019899,2]
[359186530,1745788232982,-366.69,0.00019899,2]
[359186531,1745788232990,-480.0,0.00019899,2]
[359186532,1745788232999,-480.0,0.00019899,2]
[359186533,1745788233008,-480.0,0.00019899,2]
[359186534,1745788233018,-232.6,0.00019899,2]
[359186535,1745788233027,-500.0,0.00019899,2]
[359186536,1745788233036,-500.0,0.00019899,2]
[359186537,1745788233044,-500.0,0.00019899,2]
[359186538,1745788233053,-500.0,0.00019899,2]
[359186539,1745788233062,-480.0,0.00019899,2]
[359186540,1745788233072,-200.86,0.00019899,2]
[359186541,1745788233081,-500.0,0.00019899,2]
[359186542,1745788233089,-500.0,0.00019899,2]
[359186543,1745788233099,-500.0,0.00019899,2]
[359186544,1745788233108,-500.0,0.00019899,2]
[359186545,1745788233116,-480.0,0.00019899,2]
[359186546,1745788233125,-480.0,0.00019899,2]
[359186547,1745788233135,-480.0,0.00019899,2]
[359186548,1745788233144,-480.0,0.00019899,2]
[359186549,1745788233154,-500.0,0.00019899,2]
[359186550,1745788233164,-480.0,0.00019899,2]
[359186551,1745788233173,-364.44,0.00019899,2]
[359186552,1745788233183,-500.0,0.00019899,2]
[359186553,1745788233193,-500.0,0.00019899,2]
[359186554,1745788233202,-480.0,0.00019899,2]
[359186555,1745788233212,-423.7,0.00019899,2]
[359186556,1745788233222,-480.0,0.00019899,2]
[359186557,1745788233232,-303.64,0.00019899,2]
[359186558,1745788233242,-480.0,0.00019899,2]
[359186559,1745788233252,-480.0,0.00019899,2]
[359186560,1745788233261,-298.92,0.00019899,2]
[359186561,1745788233271,-400.0,0.00019899,2]
[359186562,1745788233280,-599.61,0.00019899,2]
[359186563,1745788233290,-480.0,0.00019899,2]
[359186564,1745788233299,-480.0,0.00019899,2]
[359186565,1745788233309,-480.0,0.00019899,2]
[359186566,1745788233319,-480.0,0.00019899,2]
[359186567,1745788233329,-400.0,0.00019899,2]
[359186568,1745788233338,-441.77,0.00019899,2]
[359186569,1745788233347,-400.0,0.00019899,2]
[359186570,1745788233357,-150.0,0.00019899,2]
[359186571,1745788233366,-480.0,0.00019899,2]
[359186572,1745788233376,-480.0,0.00019899,2]
[359186573,1745788233386,-480.0,0.00019899,2]
[359186574,1745788233396,-480.0,0.00019899,2]
[359186575,1745788233406,-561.71,0.00019899,2]
[359186576,1745788233415,-500.0,0.00019899,2]
[359186577,1745788233424,-480.0,0.00019899,2]
[359186578,1745788233434,-267.82,0.00019899,2]
[359186579,1745788233444,-480.0,0.00019899,2]
[359186580,1745788233453,-333.87,0.00019899,2]
[359186581,1745788233463,-500.0,0.00019899,2]
[359186582,1745788233473,-480.0,0.00019899,2]
[359186583,1745788233482,-214.06,0.00019899,2]
[359186584,1745788233491,-500.0,0.00019899,2]
[359186585,1745788233500,-892.71386967,0.000199,2]
[359186586,1745788233515,-3406.57072756,0.000199,2]
[359186587,1745788233524,-838.54465164,0.000199,2]
[359186593,1745788237761,-500.0,0.00019898,2]
[359186594,1745788237772,-246.54778634,0.00019898,2]
[359186595,1745788237781,-214.8619615,0.00019898,2]
[359186596,1745788237791,-500.0,0.00019898,2]
[359186597,1745788237800,-497.04303025,0.00019898,2]
[359186598,1745788237810,-500.0,0.00019899,2]
[359186599,1745788237820,-224.94,0.00019899,2]
[359186600,1745788237836,-979481.58034836,0.000199,2]
[359186601,1745788237846,-8514.67231477,0.000199,2]
[359186602,1745788237855,-12500.0,0.000199,2]
[359186603,1745788237865,-7683.52921485,0.000199,2]
[359186604,1745788237875,-5756.91330764,0.000199,2]
[359186605,1745788237885,-194.33136085,0.000199,2]
[359186606,1745788237895,-273.80786711,0.000199,2]
[359186607,1745788237905,-150.0,0.00019926,2]
[359186608,1745788237915,-500.0,0.00019926,2]
[359186609,1745788237924,-150.0,0.00019936,2]
[359186610,1745788237934,-207.34069836,0.00019954,2]
[359186611,1745788237944,-500.0,0.00019954,2]
[359186612,1745788237954,-150.0,0.00019967,2]
[359186613,1745788237964,-500.0,0.00019973,2]
[359186614,1745788237974,-519.07248409,0.00019973,2]
[359186615,1745788237984,-500.64964353,0.00019973,2]
[359186616,1745788237994,-245.82421062,0.00019973,2]
[359186617,1745788238003,-500.0,0.00019973,2]
[359186618,1745788238013,-500.0,0.00019973,2]
[359186619,1745788238023,-500.0,0.00019973,2]
[359186620,1745788238032,-500.0,0.00019973,2]
[359186622,1745788238041,-502.16753865,0.00019973,2]
[359186624,1745788238051,-500.0,0.00019973,2]
[359186625,1745788238061,-242.74848975,0.00019973,2]
[359186627,1745788238073,-500.0,0.00019973,2]
[359186629,1745788238082,-502.29282697,0.00019973,2]
[359186631,1745788238092,-507.65322154,0.00019973,2]
[359186633,1745788238101,-419.05272127,0.00019981,2]
[359186634,1745788238111,-151.0,0.00019986,2]
[359186636,1745788238121,-151.0,0.00019986,2]
[359186638,1745788238131,-206.965654,0.00019986,2]
[359186640,1745788238141,-206.965654,0.00019986,2]
[359186642,1745788238151,-2440.2370657,0.00019986,2]
[359186644,1745788238161,-989.3502539,0.00019986,2]
[359186645,1745788238170,-151.0,0.00019986,2]
[359186647,1745788238180,-26195.2323333,0.00019986,2]
[359186649,1745788238189,-257.516,0.00019997,2]
[359186651,1745788238199,-480.0,0.00019998,2]
[359186653,1745788238208,-211.78171113,0.00019998,2]
[359186654,1745788238217,-500.0,0.00019999,2]
[359186656,1745788238226,-500.0,0.00019999,2]
[359186658,1745788238236,-480.0,0.00019999,2]
[359186660,1745788238245,-480.0,0.00019999,2]
[359186661,1745788238254,-480.0,0.00019999,2]
[359186663,1745788238263,-480.0,0.00019999,2]
[359186665,1745788238272,-496.55,0.00019999,2]
[359186667,1745788238282,-500.0,0.00019999,2]
[359186669,1745788238291,-500.0,0.00019999,2]
[359186671,1745788238300,-480.0,0.00019999,2]
[359186673,1745788238310,-217.71,0.00019999,2]
[359186674,1745788238319,-500.0,0.00019999,2]
[359186676,1745788238329,-500.0,0.00019999,2]
[359186678,1745788238339,-500.0,0.00019999,2]
[359186680,1745788238348,-480.0,0.00019999,2]
[359186681,1745788238358,-212.97,0.00019999,2]
[359186683,1745788238367,-557.44,0.00019999,2]
[359186685,1745788238376,-500.0,0.00019999,2]
[359186687,1745788238385,-500.0,0.00019999,2]
[359186688,1745788238395,-500.0,0.00019999,2]
[359186689,1745788238404,-233.93,0.00019999,2]
[359186690,1745788238413,-480.0,0.00019999,2]
[359186691,1745788238423,-480.0,0.00019999,2]
[359186692,1745788238432,-480.0,0.00019999,2]
[359186693,1745788238442,-480.0,0.00019999,2]
[359186694,1745788238451,-480.0,0.00019999,2]
[359186695,1745788238461,-480.0,0.00019999,2]
[359186696,1745788238470,-480.0,0.00019999,2]
[359186697,1745788238479,-480.0,0.00019999,2]
[359186698,1745788238488,-521.55,0.00019999,2]
[359186699,1745788238497,-28427.22991366,0.0002,2]
[359186700,1745788238516,-282.55999991,0.0002,2]
[359186701,1745788238528,-889.94530385,0.0002,2]
[359186702,1745788238539,-636.34750025,0.0002,2]
[359186703,1745788238550,-2200.21500561,0.0002,2]
[359186704,1745788239806,-35994.56205956,0.0002,2]
[359186705,1745788239818,-1006.2,0.0002,2]
[359186706,1745788239860,-15000.0,0.0002,2]
[359186707,1745788239872,-9200.0,0.0002,2]
[359186708,1745788239920,-4132.48797832,0.0002,2]
[359186709,1745788239933,-14837.51873138,0.0002,2]
[359186710,1745788239947,-1931.32879934,0.0002,2]
[359186711,1745788239973,-459.91691758,0.0002,2]
[359186712,1745788239984,-711.85993461,0.0002,2]
[359186713,1745788240034,-17006.37,0.0002,2]
[359186714,1745788240045,-3071.32839809,0.0002,2]
[359186715,1745788240090,-4457.93347253,0.0002,2]
[359186716,1745788242542,-475.47215707,0.0002,2]
[359186717,1745788242554,-873.04153788,0.0002,2]
[359186718,1745788242597,-1494.82940774,0.0002,2]
[359186719,1745788242651,-50956.53433579,0.0002,2]
[359186720,1745788242707,-1253.84183608,0.0002,2]
[359186721,1745788242816,-492858.07089449,0.0002,2]
[359186722,1745788242826,-584954.77686516,0.0002,2]
[359186723,1745788242870,-1015.7,0.0002,2]
[359186724,1745788242883,-1729.05023208,0.0002,2]
[359186974,1745788245550,-657.27927126,0.0002,2]
[359186976,1745788245561,-630.820596,0.0002,2]
[359186982,1745788245607,-314.89998154,0.0002,2]
[359186984,1745788245619,-638.30465723,0.0002,2]
[359187006,1745788245822,-8249.9,0.0002,2]
[359187008,1745788245838,-351354.08137045,0.0002,2]
[359187014,1745788245878,-222570.38123368,0.0002,2]
[359187016,1745788245890,-1765.9,0.0002,2]
[359187018,1745788245901,-29477.47021712,0.0002,2]
[359187020,1745788245912,-19510.76583152,0.0002,2]
[359187023,1745788245934,-4033.602,0.0002,2]
[359187031,1745788245992,-3911.46174164,0.0002,2]
[359187033,1745788246003,-3016.936,0.0002,2]
[359187035,1745788246014,-588.748,0.0002,2]
[359187092,1745788280075,486.68,0.00019239,2]
[359187093,1745788300453,157.75,0.0004,30]
[359187094,1745788300731,157.75,0.0004,30]
[359187095,1745788309147,250.0,0.00019194,2]
[359187096,1745788309735,250.0,0.00017,2]
[359187097,1745788310812,300.0,0.00019,2]
[359187098,1745788312269,350.428,0.00041055,30]
[359187099,1745788315818,164.268056,0.0002,5]
[359187100,1745788345416,500.0,0.00040069,30]
[359187101,1745788376125,1333.0,0.00040658,120]
[359187102,1745788429849,1852.42,0.00019082,2]
[359187103,1745788435134,159.09,0.00019082,2]
[359187104,1745788481775,1196.58,0.00017117,2]
[359187105,1745788510544,-299.30376792,0.00019381,2]
[359187106,1745788519601,-300.0,0.00019381,2]
[359187107,1745788528523,-161.33106,0.00019381,2]
[359187108,1745788531404,-207.4,0.00019381,2]
[359187109,1745788537962,-151.0,0.00019381,2]
[359187110,1745788541358,-77.54517208,0.00019381,2]
[359187111,1745788543905,186.99,0.00032877,30]
[359187112,1745788601868,150.0,0.0001901,7]
[359187113,1745788615859,350.428,0.00041055,30]
[359187114,1745788626946,207.4,0.00041096,30]
[359187115,1745788635903,500.0,0.00040106,30]
[359187116,1745788636256,500.0,0.0004029,30]
[359187137,1745788708346,2110.0,0.00040596,30]
[359187138,1745788779736,1000.0,0.00018966,2]
[359187139,1745788891833,174.39,0.00015136,2]
[359187140,1745788918665,350.428,0.00041055,30]
[359187142,1745789011930,164.129068,0.0002,5]
[359187143,1745789044781,-177.519776,0.00019451,2]
[359187144,1745789085087,520.02,0.00019166,2]
[359187145,1745789110932,6236.21,0.000154,2]
[359187146,1745789127261,551.23160459,0.00036,60]
[359187147,1745789128351,429.25353244,0.00023,120]
[359187148,1745789132320,395.79,0.00041095,120]
[359187149,1745789132539,566.70922857,0.0002,120]
[359187150,1745789134421,791.51312687,0.00037808,60]
[359187151,1745789142874,4409.24,0.00019088,2]
[359187152,1745789159262,448.21399203,0.00040658,120]
[359187154,1745789201482,157.75,0.0004,30]
[359187155,1745789201647,157.75,0.0004,30]
[359187156,1745789222489,446.10958604,0.00041055,30]
[359187157,1745789230978,2235.32901974,0.00021,120]
[359187158,1745789232049,1876.83558821,0.0002301,120]
[359187159,1745789247203,161.58749344,0.0004036,30]
[359187160,1745789249438,1119.77774222,0.00035,120]
[359187161,1745789269293,866.61924983,0.0003,120]
[359187162,1745789270060,1500.0,0.00032877,120]
[359187163,1745789274729,2020.0,0.0002,120]
[359187164,1745789280301,2113.37064071,0.0003254,30]
[359187165,1745789285313,200.0,0.00018905,2]
[359187166,1745789289561,271.69932262,0.0004,30]
[359187167,1745789292206,169.04689963,0.00027,120]
[359187173,1745789314651,212.76834256,0.00028799,120]
[359187174,1745789316106,337.54660795,0.0003,60]
[359187175,1745789317159,1203.72744603,0.00036,120]
[359187176,1745789317702,804.86025094,0.00039,120]
[359187177,1745789318091,859.55904571,0.00030137,120]
[359187178,1745789318912,540.67136275,0.0004,30]
[359187179,1745789320240,1389.68,0.00036,60]
[359187180,1745789321457,160.36346268,0.0004,120]
[359187181,1745789321667,2601.0,0.000145,120]
[359187182,1745789325960,257.51604713,0.00035,30]
[359187183,1745789326562,643.94982251,0.0002,120]
[359187184,1745789327077,1254.44032783,0.00041,120]
[359187185,1745789327159,1018.78962401,0.000377,120]
[359187186,1745789327347,2710.0,0.00036986,60]
[359187187,1745789327656,168.76920812,0.0004,120]
[359187188,1745789327705,1995.0,0.000408,60]
[359187189,1745789327738,996.0,0.00035,60]
[359187190,1745789382714,172.44,0.00019014,2]
[359187192,1745789383150,172.44,0.00028521,120]
[359187194,1745789431702,-171.7412988,0.00019395,2]
[359187195,1745789431713,-250.0,0.00019445,2]
[359187196,1745789431725,-200.0,0.00019445,2]
[359187197,1745789431735,-190.47,0.00019562,2]
[359187198,1745789431747,-200.0,0.00019567,2]
[359187199,1745789431757,-300.0,0.00019799,2]
[359187200,1745789431766,-1200.0,0.00019799,2]
[359187201,1745789431775,-1127.02641682,0.000198,2]
[359187202,1745789431786,-389.90808318,0.000198,2]
[359187203,1745789431796,-182.9857,0.000198,2]
[359187204,1745789431806,-10952.806,0.000198,2]
[359187205,1745789431816,-1293.6604,0.000198,2]
[359187206,1745789431826,-184.0413,0.000198,2]
[359187207,1745789431835,-300.0,0.00019862,2]
[359187208,1745789431845,-14636.78460882,0.00019863,2]
[359187209,1745789431854,-1038.07,0.00019871,2]
[359187210,1745789431863,-165.47764952,0.00019871,2]
[359187211,1745789431873,-5182.4592188,0.00019872,2]
[359187212,1745789431882,-5025.052,0.00019873,2]
[359187213,1745789431891,-41700.0,0.00019873,2]
[359187214,1745789431900,-155.2024486,0.00019873,2]
[359187215,1745789431910,-511.39034072,0.00019873,2]
[359187216,1745789431919,-500.0,0.00019873,2]
[359187217,1745789431929,-594.19862053,0.00019873,2]
[359187218,1745789431938,-500.0,0.00019873,2]
[359187219,1745789431947,-500.0,0.00019873,2]
[359187220,1745789431956,-500.0,0.00019873,2]
[359187221,1745789431966,-500.0,0.00019873,2]
[359187222,1745789431975,-806.64762102,0.00019875,2]
[359187223,1745789431985,-6608.10484879,0.00019886,2]
[359187224,1745789431995,-664.5333,0.00019886,2]
[359187225,1745789432004,-938.0889,0.00019886,2]
[359187226,1745789432014,-1488.1735,0.00019886,2]
[359187227,1745789432023,-6608.10484877,0.00019888,2]
[359187228,1745789432032,-6608.10484877,0.00019889,2]
[359187229,1745789432042,-200.51,0.0001989,2]
[359187230,1745789432052,-200.51,0.0001989,2]
[359187231,1745789432061,-200.51,0.0001989,2]
[359187232,1745789432071,-6608.10484877,0.00019891,2]
[359187234,1745789432080,-12500.0,0.00019891,2]
[359187235,1745789432089,-12500.0,0.00019891,2]
[359187236,1745789432099,-6608.10484877,0.00019892,2]
[359187238,1745789432109,-6608.10484877,0.00019894,2]
[359187240,1745789432119,-6608.10484877,0.00019895,2]
[359187242,1745789432127,-6608.10484877,0.00019897,2]
[359187244,1745789432138,-6608.10484877,0.00019898,2]
[359187245,1745789432148,-500.0,0.00019899,2]
[359187247,1745789432157,-150.0,0.00019899,2]
[359187250,1745789432167,-480.0,0.00019899,2]
[359187252,1745789432177,-480.0,0.00019899,2]
[359187254,1745789432186,-480.0,0.00019899,2]
[359187258,1745789432196,-645.05843066,0.000199,2]
[359187261,1745789432206,-24476.581,0.000199,2]
[359187264,1745789432216,-9845.1501,0.000199,2]
[359187265,1745789432394,-2532.0675,0.000199,2]
[359187266,1745789432403,-12500.0,0.000199,2]
[359187267,1745789432412,-176.8805,0.000199,2]
[359187268,1745789432422,-12500.0,0.000199,2]
[359187269,1745789432431,-521.02250144,0.000199,2]
[359187270,1745789432440,-6608.10484877,0.000199,2]
[359187271,1745789432450,-194.33136085,0.000199,2]
[359187272,1745789432459,-3525.46618202,0.000199,2]
[359187273,1745789432469,-273.80786711,0.000199,2]
[359187274,1745789432480,-150.0,0.00019913,2]
[359187275,1745789432489,-500.0,0.00019926,2]
[359187276,1745789432500,-207.34069836,0.00019926,2]
[359187277,1745789432509,-151.0,0.00019953,2]
[359187278,1745789432519,-419.05272127,0.00019954,2]
[359187279,1745789432530,-200.51,0.00019963,2]
[359187280,1745789432547,-150.0,0.0001997,2]
[359187281,1745789432557,-15341.0,0.00019973,2]
[359187282,1745789432567,-500.0,0.00019973,2]
[359187283,1745789432579,-509.56988731,0.00019973,2]
[359187284,1745789432590,-245.82421062,0.00019973,2]
[359187285,1745789432600,-500.0,0.00019973,2]
[359187286,1745789432610,-500.0,0.00019973,2]
[359187287,1745789432619,-500.64964353,0.00019973,2]
[359187288,1745789432630,-519.07248409,0.00019973,2]
[359187289,1745789432640,-500.0,0.00019973,2]
[359187290,1745789432650,-500.0,0.00019973,2]
[359187291,1745789432660,-502.16753865,0.00019973,2]
[359187292,1745789432669,-500.0,0.00019973,2]
[359187293,1745789432678,-507.65322154,0.00019973,2]
[359187294,1745789432687,-502.29282697,0.00019973,2]
[359187295,1745789432696,-500.0,0.00019973,2]
[359187296,1745789432706,-500.0,0.00019973,2]
[359187297,1745789432715,-242.74848975,0.00019973,2]
[359187298,1745789432726,-480.0,0.00019975,2]
[359187299,1745789432736,-233.93,0.00019975,2]
[359187300,1745789432746,-200.51,0.00019976,2]
[359187301,1745789432757,-200.51,0.00019976,2]
[359187302,1745789432767,-200.51,0.00019976,2]
[359187303,1745789432776,-200.51,0.00019976,2]
[359187304,1745789432785,-200.51,0.00019976,2]
[359187305,1745789432794,-200.51,0.00019976,2]
[359187306,1745789432804,-211.78171113,0.00019985,2]
[359187307,1745789432813,-37154.1412286,0.00019986,2]
[359187308,1745789432823,-2336.1307786,0.00019986,2]
[359187309,1745789432832,-164.89170927,0.00019986,2]
[359187310,1745789432841,-743.2927844,0.00019986,2]